Cogmind - Beta 12 --- EXPLORER MODE // 2023.03.26 @ 06:03:14 Player: Rainynight Result: Destroyed by G-67 Veteran with Field Laser Performance ------------- Evolutions (6) 3000 Regions Visited (17) 3400 Robots Destroyed (0) 0 Value Destroyed (0) 0 Prototype IDs (0) 0 Alien Tech Used (0) 0 Bonus (10062) 10062 TOTAL SCORE: 16462 Bonus ------- Devolution -10500 Fragile Parts 1500 No Salvage 1500 Pure Core 3000 Scavenger 6000 Simple Hacker 3682 Trapped 1000 Pacifist 2880 Entered DSFs 1000 Cogmind --------- Core Integrity 0/800 Matter 300/300 Energy 99/100 System Corruption 3% Temperature Cool (0) Movement Core (50) Location -4/Factory Parts ------- > --- POWER (3) -------- (None) > --- PROPULSION (5) --- (None) > --- UTILITY (1) ------ (None) > --- WEAPON (6) ------- (None) > --- INVENTORY (0) ---- (None) Peak State ------------ None Favorites ----------- Power None Propulsion None Utility None Weapon None Build | -11 -10 -10 -9 -9 -8 -7 -7 -7 -7 -6 -6 -6 -5 -5 -4 -4 -4 ------- Run | Jun Mat Min Mat Min Mat Fac Was Fac DSF Fac Was Fac Fac DSF Fac Was Fac Slots Evolved -5 | . 1 . -1 . -1 -1 . . . -1 . . -1 . -1 . . Power . | . . . . . . . . . . . . . . . . . . Propulsion -1 | . . . . . . . . . . . . . -1 . . . . Utility -5 | . . . -1 . -1 -1 . . . -1 . . . . -1 . . Weapon 1 | . 1 . . . . . . . . . . . . . . . . Parts Attached . | . . . . . . . . . . . . . . . . . . Power . | . . . . . . . . . . . . . . . . . . Engine . | . . . . . . . . . . . . . . . . . . Core . | . . . . . . . . . . . . . . . . . . Reactor . | . . . . . . . . . . . . . . . . . . Propulsion . | . . . . . . . . . . . . . . . . . . Treads . | . . . . . . . . . . . . . . . . . . Leg . | . . . . . . . . . . . . . . . . . . Wheel . | . . . . . . . . . . . . . . . . . . Hover . | . . . . . . . . . . . . . . . . . . Flight . | . . . . . . . . . . . . . . . . . . Utility . | . . . . . . . . . . . . . . . . . . Device . | . . . . . . . . . . . . . . . . . . Storage . | . . . . . . . . . . . . . . . . . . Processor . | . . . . . . . . . . . . . . . . . . Hackware . | . . . . . . . . . . . . . . . . . . Protection . | . . . . . . . . . . . . . . . . . . Artifact . | . . . . . . . . . . . . . . . . . . Weapon . | . . . . . . . . . . . . . . . . . . Energy Gun . | . . . . . . . . . . . . . . . . . . Energy Cannon . | . . . . . . . . . . . . . . . . . . Ballistic Gun . | . . . . . . . . . . . . . . . . . . Ballistic Cannon . | . . . . . . . . . . . . . . . . . . Launcher . | . . . . . . . . . . . . . . . . . . Special Weapon . | . . . . . . . . . . . . . . . . . . Impact Weapon . | . . . . . . . . . . . . . . . . . . Slashing Weapon . | . . . . . . . . . . . . . . . . . . Piercing Weapon . | . . . . . . . . . . . . . . . . . . Special Melee Weapon . | . . . . . . . . . . . . . . . . . . Unidentified Prototypes . | . . . . . . . . . . . . . . . . . . Parts Lost . | . . . . . . . . . . . . . . . . . . Power . | . . . . . . . . . . . . . . . . . . Propulsion . | . . . . . . . . . . . . . . . . . . Utility . | . . . . . . . . . . . . . . . . . . Weapon . | . . . . . . . . . . . . . . . . . . Highest Loss Streak . | . . . . . . . . . . . . . . . . . . To Critical Strikes . | . . . . . . . . . . . . . . . . . . Average Slot Usage (%) . | . . . . . . . . . . . . . . . . . . Naked Turns 1104 | . 58 9 43 6 97 15 37 6 30 35 40 338 29 124 83 33 121 Heaviest Build . | . . . . . . . . . . . . . . . . . . Greatest Support 3 | 3 3 3 3 3 3 3 3 3 3 3 3 3 3 3 3 3 3 Greatest Overweight (x) . | . . . . . . . . . . . . . . . . . . Average Overweight (x) . | . . . . . . . . . . . . . . . . . . Largest Inventory Capacity . | . . . . . . . . . . . . . . . . . . Average Capacity . | . . . . . . . . . . . . . . . . . . Most Carried . | . . . . . . . . . . . . . . . . . . Average Carried . | . . . . . . . . . . . . . . . . . . Final Capacity . | . . . . . . . . . . . . . . . . . . Final Carried . | . . . . . . . . . . . . . . . . . . Class Distribution -------------------- 100% | Hacker-Mutant Dominant Class ---------------- Hacker-Mutant | -10/Materials Hacker-Mutant | -10/Mines Hacker-Mutant | -9/Materials Hacker-Mutant | -9/Mines Hacker-Mutant | -8/Materials Hacker-Mutant | -7/Factory Hacker-Mutant | -7/Waste Hacker-Mutant | -7/Factory Hacker-Mutant | -7/DSF Hacker-Mutant | -6/Factory Hacker-Mutant | -6/Waste Hacker-Mutant | -6/Factory Hacker-Mutant | -5/Factory Hacker-Mutant | -5/DSF Hacker-Mutant | -4/Factory Hacker-Mutant | -4/Waste Hacker-Mutant | -4/Factory Resources | -11 -10 -10 -9 -9 -8 -7 -7 -7 -7 -6 -6 -6 -5 -5 -4 -4 -4 ----------- Run | Jun Mat Min Mat Min Mat Fac Was Fac DSF Fac Was Fac Fac DSF Fac Was Fac Matter Collected 160 | . . . . . . . . . . . 146 13 . 1 . . . Remotely . | . . . . . . . . . . . . . . . . . . Salvage Created . | . . . . . . . . . . . . . . . . . . Parts . | . . . . . . . . . . . . . . . . . . Haulers Intercepted . | . . . . . . . . . . . . . . . . . . Recyclers Shooed . | . . . . . . . . . . . . . . . . . . Parts Field Recycled . | . . . . . . . . . . . . . . . . . . Retrieved Matter . | . . . . . . . . . . . . . . . . . . Parts Self-Destructed . | . . . . . . . . . . . . . . . . . . Prevented . | . . . . . . . . . . . . . . . . . . Kills | -11 -10 -10 -9 -9 -8 -7 -7 -7 -7 -6 -6 -6 -5 -5 -4 -4 -4 ------- Run | Jun Mat Min Mat Min Mat Fac Was Fac DSF Fac Was Fac Fac DSF Fac Was Fac Combat Hostiles Destroyed . | . . . . . . . . . . . . . . . . . . Classes Destroyed . | . . . . . . . . . . . . . . . . . . Best Kill Streak . | . . . . . . . . . . . . . . . . . . Combat Bots Only . | . . . . . . . . . . . . . . . . . . Max Kills in Single Turn . | . . . . . . . . . . . . . . . . . . Gunslinging . | . . . . . . . . . . . . . . . . . . Exploded . | . . . . . . . . . . . . . . . . . . Melee . | . . . . . . . . . . . . . . . . . . Uniques/NPCs Destroyed . | . . . . . . . . . . . . . . . . . . Combat | -11 -10 -10 -9 -9 -8 -7 -7 -7 -7 -6 -6 -6 -5 -5 -4 -4 -4 -------- Run | Jun Mat Min Mat Min Mat Fac Was Fac DSF Fac Was Fac Fac DSF Fac Was Fac Damage Taken 2712 | . 57 6 126 . 264 . 85 . . . . 729 . 643 . 48 754 Core 2712 | . 57 6 126 . 264 . 85 . . . . 729 . 643 . 48 754 Absorbed by Shields 42 | . . . . . . . . . . . . . . 42 . . . Core Remaining (%) 65 | 100 . 92 . 84 67 . . . 89 . . 8 . 19 . . . Volleys Fired . | . . . . . . . . . . . . . . . . . . Largest . | . . . . . . . . . . . . . . . . . . Hottest . | . . . . . . . . . . . . . . . . . . Shots Fired . | . . . . . . . . . . . . . . . . . . Gun . | . . . . . . . . . . . . . . . . . . Cannon . | . . . . . . . . . . . . . . . . . . Launcher . | . . . . . . . . . . . . . . . . . . Special . | . . . . . . . . . . . . . . . . . . Kinetic . | . . . . . . . . . . . . . . . . . . Thermal . | . . . . . . . . . . . . . . . . . . Explosive . | . . . . . . . . . . . . . . . . . . Electromagnetic . | . . . . . . . . . . . . . . . . . . Robot Hit Streak . | . . . . . . . . . . . . . . . . . . Robot Miss Streak . | . . . . . . . . . . . . . . . . . . Penetration Max . | . . . . . . . . . . . . . . . . . . Secondary Targets . | . . . . . . . . . . . . . . . . . . Shots Hit Robots . | . . . . . . . . . . . . . . . . . . Core Hits 2 | . . . 1 . 1 . . . . . . . . . . . . Critical Kills . | . . . . . . . . . . . . . . . . . . Critical Parts Destroyed . | . . . . . . . . . . . . . . . . . . Critical Strikes . | . . . . . . . . . . . . . . . . . . Melee Attacks . | . . . . . . . . . . . . . . . . . . Impact . | . . . . . . . . . . . . . . . . . . Slashing . | . . . . . . . . . . . . . . . . . . Piercing . | . . . . . . . . . . . . . . . . . . Sneak Attacks . | . . . . . . . . . . . . . . . . . . Combat Hostiles . | . . . . . . . . . . . . . . . . . . Follow-up Attacks . | . . . . . . . . . . . . . . . . . . Damage Inflicted 90 | . 11 1 20 . 12 . . . . . . 4 . 3 . . 39 Guns . | . . . . . . . . . . . . . . . . . . Cannons . | . . . . . . . . . . . . . . . . . . Explosions . | . . . . . . . . . . . . . . . . . . Melee . | . . . . . . . . . . . . . . . . . . Ramming 90 | . 11 1 20 . 12 . . . . . . 4 . 3 . . 39 Kinetic . | . . . . . . . . . . . . . . . . . . Thermal . | . . . . . . . . . . . . . . . . . . Explosive . | . . . . . . . . . . . . . . . . . . Electromagnetic . | . . . . . . . . . . . . . . . . . . Impact . | . . . . . . . . . . . . . . . . . . Slashing . | . . . . . . . . . . . . . . . . . . Piercing . | . . . . . . . . . . . . . . . . . . Highest Corruption 5 | . . 1 . . 2 . 5 5 5 . . 2 . . . 3 3 Average Corruption 2 | . . 1 . . 1 . 5 5 5 . . 1 . . . 3 3 Corruption Purged . | . . . . . . . . . . . . . . . . . . Corruption Blocked . | . . . . . . . . . . . . . . . . . . Effects 7 | . . . . . . . . . 1 . . 2 . . . . 4 Message Errors 2 | . . . . . . . . . 1 . . . . . . . 1 Matter Fused 2 | . . . . . . . . . . . . 1 . . . . 1 Heat Flow Errors 1 | . . . . . . . . . . . . . . . . . 1 Energy Discharges 1 | . . . . . . . . . . . . 1 . . . . . Data Loss (minor) 1 | . . . . . . . . . . . . . . . . . 1 Overload Shots . | . . . . . . . . . . . . . . . . . . Overflow Damage . | . . . . . . . . . . . . . . . . . . Projectiles . | . . . . . . . . . . . . . . . . . . Explosions . | . . . . . . . . . . . . . . . . . . Melee . | . . . . . . . . . . . . . . . . . . Knockbacks . | . . . . . . . . . . . . . . . . . . Impact . | . . . . . . . . . . . . . . . . . . Kinetic . | . . . . . . . . . . . . . . . . . . Secondary . | . . . . . . . . . . . . . . . . . . Self-Inflicted Damage 42 | . 5 . 9 . 6 . . . . . . 2 . 1 . . 19 Shots . | . . . . . . . . . . . . . . . . . . Rammed 21 | . 1 1 4 . 3 . . . . . . 2 . 1 . . 9 Targets Rammed 21 | . 1 1 4 . 3 . . . . . . 2 . 1 . . 9 Kicked . | . . . . . . . . . . . . . . . . . . Crushed . | . . . . . . . . . . . . . . . . . . Highest Temperature 94 | . . . . . 7 . . . . . . 16 . . . . 94 Average Temperature 36 | . . . . . 7 . . . . . . 11 . . . . 54 Received Heat Transfer 598 | . 51 6 48 . 171 . . . . . . 228 . . . . 94 Siege Activations . | . . . . . . . . . . . . . . . . . . Robots Corrupted . | . . . . . . . . . . . . . . . . . . Combat Hostiles . | . . . . . . . . . . . . . . . . . . Parts Fried . | . . . . . . . . . . . . . . . . . . Impact Corruptions . | . . . . . . . . . . . . . . . . . . Robots Melted . | . . . . . . . . . . . . . . . . . . Combat Hostiles . | . . . . . . . . . . . . . . . . . . Parts Melted . | . . . . . . . . . . . . . . . . . . Heat Transferred . | . . . . . . . . . . . . . . . . . . Parts Sabotaged . | . . . . . . . . . . . . . . . . . . Parts Stolen . | . . . . . . . . . . . . . . . . . . Parts Stripped . | . . . . . . . . . . . . . . . . . . Power Chain Reactions . | . . . . . . . . . . . . . . . . . . Missiles Intercepted . | . . . . . . . . . . . . . . . . . . Alert | -11 -10 -10 -9 -9 -8 -7 -7 -7 -7 -6 -6 -6 -5 -5 -4 -4 -4 ------- Run | Jun Mat Min Mat Min Mat Fac Was Fac DSF Fac Was Fac Fac DSF Fac Was Fac Peak Influence 401 | . 15 4 46 3 111 46 25 13 6 1 . 401 144 122 47 56 180 Initial 144 | . . 4 1 3 . 36 10 13 6 1 . . 144 77 47 11 30 Average 78 | . 10 4 17 3 40 43 18 13 6 1 . 142 144 98 47 43 90 Maximum Alert Level 2 | . . . . . . . . . . . . 2 . . . . . Low Security (%) 89 | 100 100 100 100 100 100 100 100 100 100 100 100 64 100 100 100 100 100 Level 1 6 | . . . . . . . . . . . . 21 . . . . . Level 2 4 | . . . . . . . . . . . . 13 . . . . . Level 3 . | . . . . . . . . . . . . . . . . . . Level 4 . | . . . . . . . . . . . . . . . . . . Level 5 . | . . . . . . . . . . . . . . . . . . High Security . | . . . . . . . . . . . . . . . . . . Max Security . | . . . . . . . . . . . . . . . . . . Squads Dispatched 9 | . . . 1 . 1 . . . . . . 3 . 2 . . 2 Investigation 5 | . . . 1 . 1 . . . . . . 3 . . . . . Extermination . | . . . . . . . . . . . . . . . . . . Reinforcement 4 | . . . . . . . . . . . . . . 2 . . 2 Assault . | . . . . . . . . . . . . . . . . . . Garrison . | . . . . . . . . . . . . . . . . . . Intercept . | . . . . . . . . . . . . . . . . . . Searches Triggered . | . . . . . . . . . . . . . . . . . . Construction Impeded 1 | . . . . . . . . . . . . . . . . . 1 Haulers Reinforced . | . . . . . . . . . . . . . . . . . . Active Scanning Responses . | . . . . . . . . . . . . . . . . . . Cargo Convoy Interrupts . | . . . . . . . . . . . . . . . . . . Stealth | -11 -10 -10 -9 -9 -8 -7 -7 -7 -7 -6 -6 -6 -5 -5 -4 -4 -4 --------- Run | Jun Mat Min Mat Min Mat Fac Was Fac DSF Fac Was Fac Fac DSF Fac Was Fac Distress Signals 1 | . . . . . 1 . . . . . . . . . . . . Communications Jammed . | . . . . . . . . . . . . . . . . . . Distress Signals . | . . . . . . . . . . . . . . . . . . Times Spotted 93 | . 5 2 5 . 14 . 6 . . . . 31 . 8 . 4 18 Peak Tracking Total 14 | . 3 2 5 . 14 . 6 . 1 . . 9 . 5 . 4 12 Tactical Retreats 11 | . . . . . 1 . . . . . . 6 . 1 . . 3 Traps | -11 -10 -10 -9 -9 -8 -7 -7 -7 -7 -6 -6 -6 -5 -5 -4 -4 -4 ------- Run | Jun Mat Min Mat Min Mat Fac Was Fac DSF Fac Was Fac Fac DSF Fac Was Fac Traps Triggered 32 | . 2 . 1 . 7 1 . . 1 1 . 10 1 7 1 . . Indirectly . | . . . . . . . . . . . . . . . . . . Trap Hack Attempts . | . . . . . . . . . . . . . . . . . . Triggered . | . . . . . . . . . . . . . . . . . . Disarmed . | . . . . . . . . . . . . . . . . . . Reprogrammed . | . . . . . . . . . . . . . . . . . . Reused 3 | . . . . . . . . . . . . . . 3 . . . Traps Extracted . | . . . . . . . . . . . . . . . . . . Installed 17 | . . . . . . . . . . . . . . 17 . . . Triggered 5 | . . . . . . . . . . . . 2 . 3 . . . Machines | -11 -10 -10 -9 -9 -8 -7 -7 -7 -7 -6 -6 -6 -5 -5 -4 -4 -4 ---------- Run | Jun Mat Min Mat Min Mat Fac Was Fac DSF Fac Was Fac Fac DSF Fac Was Fac Machines Disabled . | . . . . . . . . . . . . . . . . . . Max in Single Turn . | . . . . . . . . . . . . . . . . . . Machines Repaired . | . . . . . . . . . . . . . . . . . . Machines Sabotaged . | . . . . . . . . . . . . . . . . . . Overloaded Fab Kills . | . . . . . . . . . . . . . . . . . . Hacking | -11 -10 -10 -9 -9 -8 -7 -7 -7 -7 -6 -6 -6 -5 -5 -4 -4 -4 --------- Run | Jun Mat Min Mat Min Mat Fac Was Fac DSF Fac Was Fac Fac DSF Fac Was Fac Machines Accessed 10 | . 1 . 1 . 1 1 . 1 . . . 3 1 . . . 1 Terminals 10 | . 1 . 1 . 1 1 . 1 . . . 3 1 . . . 1 Fabricators . | . . . . . . . . . . . . . . . . . . Repair Stations . | . . . . . . . . . . . . . . . . . . Recycling Units . | . . . . . . . . . . . . . . . . . . Scanalyzers . | . . . . . . . . . . . . . . . . . . Garrison Access . | . . . . . . . . . . . . . . . . . . Total Hacks 22 | . 2 . 3 . 3 1 . 2 . . . 8 2 . . . 1 Successful 10 | . 1 . 2 . 1 1 . 1 . . . 2 1 . . . 1 Failed 12 | . 1 . 1 . 2 . . 1 . . . 6 1 . . . . Catastrophic 2 | . . . . . 1 . . . . . . 1 . . . . . Database Lockouts . | . . . . . . . . . . . . . . . . . . Manual . | . . . . . . . . . . . . . . . . . . Terminals 22 | . 2 . 3 . 3 1 . 2 . . . 8 2 . . . 1 Fabricators . | . . . . . . . . . . . . . . . . . . Repair Stations . | . . . . . . . . . . . . . . . . . . Recycling Units . | . . . . . . . . . . . . . . . . . . Scanalyzers . | . . . . . . . . . . . . . . . . . . Garrison Access . | . . . . . . . . . . . . . . . . . . Terminal Hacks 10 | . 1 . 2 . 1 1 . 1 . . . 2 1 . . . 1 Robot Analysis 1 | . 1 . . . . . . . . . . . . . . . . Open DSF 2 | . . . . . . . . 1 . . . . 1 . . . . Level Access Points 2 | . . . . . 1 . . . . . . 1 . . . . . Emergency Access Points 1 | . . . . . . . . . . . . . . . . . 1 Unreport Threat 2 | . . . 2 . . . . . . . . . . . . . . Zone Layout 2 | . . . . . . 1 . . . . . 1 . . . . . Fabricator Hacks . | . . . . . . . . . . . . . . . . . . Repair Station Hacks . | . . . . . . . . . . . . . . . . . . Recycling Unit Hacks . | . . . . . . . . . . . . . . . . . . Scanalyzer . | . . . . . . . . . . . . . . . . . . Garrison Access Hacks . | . . . . . . . . . . . . . . . . . . Unauthorized Hacks . | . . . . . . . . . . . . . . . . . . Terminals . | . . . . . . . . . . . . . . . . . . Fabricators . | . . . . . . . . . . . . . . . . . . Repair Stations . | . . . . . . . . . . . . . . . . . . Recycling Units . | . . . . . . . . . . . . . . . . . . Scanalyzers . | . . . . . . . . . . . . . . . . . . Garrison Access . | . . . . . . . . . . . . . . . . . . Data Cores Recovered . | . . . . . . . . . . . . . . . . . . Used . | . . . . . . . . . . . . . . . . . . Hacking Detections 8 | . 1 . 1 . 1 1 . . . . . 3 1 . . . . Full Trace Events 4 | . . . 1 . 1 . . . . . . 2 . . . . . Feedback Events 2 | . . . . . 1 . . . . . . 1 . . . . . Corruption 2 | . . . . . 1 . . . . . . 1 . . . . . Feedback Blocked . | . . . . . . . . . . . . . . . . . . Robot Schematics Acquired . | . . . . . . . . . . . . . . . . . . Robots Built . | . . . . . . . . . . . . . . . . . . Authchips . | . . . . . . . . . . . . . . . . . . Time . | . . . . . . . . . . . . . . . . . . Total Robot Build Rating . | . . . . . . . . . . . . . . . . . . Part Schematics Acquired . | . . . . . . . . . . . . . . . . . . Parts Built . | . . . . . . . . . . . . . . . . . . Authchips . | . . . . . . . . . . . . . . . . . . Time . | . . . . . . . . . . . . . . . . . . Total Part Build Rating . | . . . . . . . . . . . . . . . . . . Parts Repaired . | . . . . . . . . . . . . . . . . . . Time . | . . . . . . . . . . . . . . . . . . Parts Recycled . | . . . . . . . . . . . . . . . . . . Recycled Matter . | . . . . . . . . . . . . . . . . . . Retrieved Matter . | . . . . . . . . . . . . . . . . . . Retrieved Components . | . . . . . . . . . . . . . . . . . . Parts Scanalyzed . | . . . . . . . . . . . . . . . . . . Part Schematics Acquired . | . . . . . . . . . . . . . . . . . . Parts Damaged . | . . . . . . . . . . . . . . . . . . Bothacking | -11 -10 -10 -9 -9 -8 -7 -7 -7 -7 -6 -6 -6 -5 -5 -4 -4 -4 ------------ Run | Jun Mat Min Mat Min Mat Fac Was Fac DSF Fac Was Fac Fac DSF Fac Was Fac Used RIF Installer . | . . . . . . . . . . . . . . . . . . Robots Hacked . | . . . . . . . . . . . . . . . . . . Non-combat . | . . . . . . . . . . . . . . . . . . Combat . | . . . . . . . . . . . . . . . . . . Robot Hacks Applied . | . . . . . . . . . . . . . . . . . . Relay Couplers Released . | . . . . . . . . . . . . . . . . . . Fabnet Peak Effective % . | . . . . . . . . . . . . . . . . . . Robots Rewired . | . . . . . . . . . . . . . . . . . . Allies Hacked . | . . . . . . . . . . . . . . . . . . Hacks Repelled . | . . . . . . . . . . . . . . . . . . Allies | -11 -10 -10 -9 -9 -8 -7 -7 -7 -7 -6 -6 -6 -5 -5 -4 -4 -4 -------- Run | Jun Mat Min Mat Min Mat Fac Was Fac DSF Fac Was Fac Fac DSF Fac Was Fac Total Allies 3 | . . . . . . . . . . . . 3 . . . . . Largest Group 3 | . . . . . . . . . . . . 3 . . . . . Highest-Rated Group 93 | . . . . . . . . . . . . 93 . . . . . Highest-Rated Ally 31 | . . . . . . . . . . . . 31 . . . . . Total Orders . | . . . . . . . . . . . . . . . . . . Ally Attacks 6 | . . . . . . . . . . . . 6 . . . . . Total Damage 84 | . . . . . . . . . . . . 84 . . . . . Kills 1 | . . . . . . . . . . . . 1 . . . . . Allies Corrupted . | . . . . . . . . . . . . . . . . . . Allies Melted . | . . . . . . . . . . . . . . . . . . Intel | -11 -10 -10 -9 -9 -8 -7 -7 -7 -7 -6 -6 -6 -5 -5 -4 -4 -4 ------- Run | Jun Mat Min Mat Min Mat Fac Was Fac DSF Fac Was Fac Fac DSF Fac Was Fac Robot Analysis Total 1 | . 1 . . . . . . . . . . . . . . . . Derelict Logs Recovered . | . . . . . . . . . . . . . . . . . . Drone Launches . | . . . . . . . . . . . . . . . . . . Drone Recoveries . | . . . . . . . . . . . . . . . . . . Exploration | -11 -10 -10 -9 -9 -8 -7 -7 -7 -7 -6 -6 -6 -5 -5 -4 -4 -4 ------------- Run | Jun Mat Min Mat Min Mat Fac Was Fac DSF Fac Was Fac Fac DSF Fac Was Fac Turns Passed 1115 | 11 58 9 43 6 97 15 37 6 30 35 40 338 29 124 83 33 121 Spaces Moved 1958 | 22 113 15 79 12 188 29 73 12 30 56 79 642 27 127 166 65 223 Core 1958 | 22 113 15 79 12 188 29 73 12 30 56 79 642 27 127 166 65 223 Treads . | . . . . . . . . . . . . . . . . . . Legs . | . . . . . . . . . . . . . . . . . . Wheels . | . . . . . . . . . . . . . . . . . . Hover . | . . . . . . . . . . . . . . . . . . Flight . | . . . . . . . . . . . . . . . . . . Fastest Speed 50 | 50 50 50 50 50 50 50 50 50 50 50 50 50 50 50 50 50 50 Average Speed 50 | 50 50 50 50 50 50 50 50 50 50 50 50 50 50 50 50 50 50 Slowest Speed 50 | 50 50 50 50 50 50 50 50 50 50 50 50 50 50 50 50 50 50 Overloaded Moves . | . . . . . . . . . . . . . . . . . . Propulsion Burnouts . | . . . . . . . . . . . . . . . . . . Robots Hopped . | . . . . . . . . . . . . . . . . . . Cave-ins Triggered . | . . . . . . . . . . . . . . . . . . Exploration Rate (%) 26 | 3 22 6 16 9 32 1 75 1 35 3 73 21 1 89 3 73 9 Regions Visited 17 Branch Regions 2 Pre-discovered Areas . | . . . . . . . . . . . . . . . . . . Known Exits Taken 9 | 1 1 1 1 1 1 . . 1 . . . 1 1 . . . . Unknown Exits Taken . | . . . . . . . . . . . . . . . . . . Scrap Searched . | . . . . . . . . . . . . . . . . . . Spaces Dug . | . . . . . . . . . . . . . . . . . . Terrain Destroyed . | . . . . . . . . . . . . . . . . . . Melee . | . . . . . . . . . . . . . . . . . . Projectile . | . . . . . . . . . . . . . . . . . . AOE . | . . . . . . . . . . . . . . . . . . Terrain Rammed . | . . . . . . . . . . . . . . . . . . Walls Destroyed . | . . . . . . . . . . . . . . . . . . Machines Disabled . | . . . . . . . . . . . . . . . . . . Actions | -11 -10 -10 -9 -9 -8 -7 -7 -7 -7 -6 -6 -6 -5 -5 -4 -4 -4 --------- Run | Jun Mat Min Mat Min Mat Fac Was Fac DSF Fac Was Fac Fac DSF Fac Was Fac Total 2076 | 21 113 15 82 11 190 29 72 11 44 63 78 658 41 186 166 64 232 Wait 9 | . . . . . . . . . . 7 . . . 2 . . . Move 1945 | 21 112 14 79 11 187 29 72 11 29 56 78 641 26 126 166 64 223 Hop . | . . . . . . . . . . . . . . . . . . Pick Up . | . . . . . . . . . . . . . . . . . . Fast Attach . | . . . . . . . . . . . . . . . . . . Attach . | . . . . . . . . . . . . . . . . . . Detach . | . . . . . . . . . . . . . . . . . . Swap . | . . . . . . . . . . . . . . . . . . Drop . | . . . . . . . . . . . . . . . . . . Fire . | . . . . . . . . . . . . . . . . . . Melee . | . . . . . . . . . . . . . . . . . . Ram 20 | . 1 1 3 . 3 . . . . . . 2 . 1 . . 9 Kick . | . . . . . . . . . . . . . . . . . . Crush . | . . . . . . . . . . . . . . . . . . Escape Stasis 85 | . . . . . . . . . 15 . . 15 15 40 . . . Rewire . | . . . . . . . . . . . . . . . . . . Trap 17 | . . . . . . . . . . . . . . 17 . . . Miscellaneous . | . . . . . . . . . . . . . . . . . . Route ------- -11/Junkyard -10/Materials -10/Mines -9/Materials (discovered 2 exits: *Min x2) -9/Mines -8/Materials (discovered 3 exits: *Fac x3) -7/Factory -7/Waste -7/Factory -7/DSF -6/Factory -6/Waste -6/Factory (discovered 4 exits: *Fac x4) -5/Factory -5/DSF -4/Factory -4/Waste -4/Factory History --------- Turn | Location | Event 3 | -11/Junkyard | Identified exit to Materials 3 | -11/Junkyard | Discovered exit to Materials (range 15) 12 | -11/Junkyard | Entered Materials 12 | -10/Materials | Devolved, losing -1 slots: Weapon x1 62 | -10/Materials | Identified exit to Mines 62 | -10/Materials | Discovered exit to Mines (range 15) 70 | -10/Materials | Entered Mines 76 | -10/Mines | Identified exit to Materials 76 | -10/Mines | Discovered exit to Materials (range 4) 79 | -10/Mines | Entered Materials 79 | -9/Materials | Devolved, losing 1 slot: Utility x-1 116 | -9/Materials | Identified exit to Mines 116 | -9/Materials | Discovered exit to Mines (range 11) 120 | -9/Materials | Discovered exit to Mines (range 12) 122 | -9/Materials | Entered Mines 126 | -9/Mines | Identified exit to Materials 126 | -9/Mines | Discovered exit to Materials (range 5) 128 | -9/Mines | Entered Materials 128 | -8/Materials | Devolved, losing 1 slot: Utility x-1 205 | -8/Materials | Identified exit to Factory 225 | -8/Materials | Entered Factory 225 | -7/Factory | Devolved, losing 1 slot: Utility x-1 240 | -7/Factory | Sucked down chute 240 | -7/Factory | Entered Waste 249 | -7/Waste | Spotted C-40 Crusher 255 | -7/Waste | EMP discharged 255 | -7/Waste | Spotted C-40 Crusher 258 | -7/Waste | Spotted C-40 Crusher 259 | -7/Waste | Spotted C-40 Crusher 263 | -7/Waste | Spotted C-40 Crusher 267 | -7/Waste | Spotted C-40 Crusher 272 | -7/Waste | Identified exit to Factory 272 | -7/Waste | Discovered exit to Factory (range 10) 277 | -7/Waste | Entered Factory 283 | -7/Factory | Identified exit to DSF 283 | -7/Factory | Entered DSF 305 | -7/DSF | Build established: Hacker-Mutant 307 | -7/DSF | Identified exit to Factory 307 | -7/DSF | Discovered exit to Factory (range 11) 313 | -7/DSF | Entered Factory 313 | -6/Factory | Devolved, losing 1 slot: Utility x-1 348 | -6/Factory | Sucked down chute 348 | -6/Factory | Entered Waste 348 | -6/Waste | The area was eerily silent 382 | -6/Waste | Identified exit to Factory 382 | -6/Waste | Discovered exit to Factory (range 10) 388 | -6/Waste | Entered Factory 610 | -6/Factory | Identified exit to Factory 659 | -6/Factory | Core integrity fell below 50% 677 | -6/Factory | Allied Derelicts emerged from ambush trap array 723 | -6/Factory | Core integrity fell below 20% 726 | -6/Factory | Entered another Factory area 726 | -5/Factory | Devolved, losing 1 slot: Propulsion x-1 755 | -5/Factory | Identified exit to DSF 755 | -5/Factory | Entered DSF 779 | -5/DSF | Additional patrols routed to DSF 860 | -5/DSF | Core integrity fell below 50% 862 | -5/DSF | Identified exit to Factory 862 | -5/DSF | Discovered exit to Factory (range 14) 878 | -5/DSF | Core integrity fell below 20% 879 | -5/DSF | Entered Factory 879 | -4/Factory | Devolved, losing 1 slot: Utility x-1 962 | -4/Factory | Sucked down chute 962 | -4/Factory | Entered Waste 966 | -4/Waste | Spotted C-40 Crusher 968 | -4/Waste | Spotted C-40 Crusher 974 | -4/Waste | Spotted C-40 Crusher 974 | -4/Waste | Spotted C-40 Crusher 977 | -4/Waste | EMP discharged 982 | -4/Waste | Spotted C-40 Crusher 990 | -4/Waste | Identified exit to Factory 990 | -4/Waste | Discovered exit to Factory (range 10) 995 | -4/Waste | Entered Factory 1066 | -4/Factory | Core integrity fell below 50% 1100 | -4/Factory | Core integrity fell below 20% 1116 | -4/Factory | Destroyed by G-67 Veteran with Field Laser Last Messages --------------- Found 4 emergency access doors: (88,20) (86,20) (85,41) (75,39) Map updated. 01082_ Slammed into S-27 Virus. 01086_ Penetrated by Slug. 01094_ K-01 Serf collects debris. 01098_ K-01 Serf cleans the Nuclear Reactor. 01099_ System corrupted: Heat flow error (+108). 01099_ Penetrated by Slug. 01099_ Slug penetrates T-07 Excavator. 01099_ Slug penetrates Wall. 01100_ Slammed into T-07 Excavator. 01100_ Penetrated by Slug. 01100_ Slug penetrates Wall. 01101_ Critical hit (Burn: +50). 01115_ K-01 Serf cleans the Construction Platform. 01116_ System corrupted: Component data lost. Map ----- +----------------------------------------------------+ | """ # #????????????# """ """ #?????????? | | "" # #????????????# "S #?????????? | | * "" # #????????????# """ #?????????? | | # #????????????+ "" #?????????? | | ######## #????????????# #?????????? | | ???????# #????????????##### ####/######??????? | | ???????# #????????????????### [ #??????? | | ???????? ###/###########????# """ #??????? | | ???????? #????# """ #??????? | | ???????? ? ###### """ #??????? | | ??????????????"" + "S "" #??????? | | ?????????????""" """ ###### """ "" #??????? | | ?????????????""" """ #????# "" #??????? | | ?????????????""" """ #????# ] ] #?????? | | ????????? =##########/######?????? | | ?????????????""" """ ????? | | ?????????????""" """ ????? | | ?????????????""" """ ???? | | ??????????????"" ^ ???? | | ????????????? = ???? | | ??????????????"" ##########Y############??????? | | ???????????????" ?????# ggh%k #???????????? | | ????????????????????????# g""""""" #???????????? | | ??????????????????????### """"""" #???????????? | | ???????????????????????u/ """"""" #???????????? | | ????????????????????????#@/ """"""" #???????????? | | ????????????????????????# #???????????? | | ????????????????????????# """"""" #???????????? | | ????????????????????????# """"""" #???????????? | | ????????????????????????# """"""" #???????????? | | ????????????????????????# s""""""" #???????????? | | ????????????????????????# s s #???????????? | | ????????????????????????# s #???????????? | | ????????????????????????##############???????????? | | ?????????????????????????????????????????????????? | | ?????????????????????????????????????????????????? | | ?????????????????????????????????????????????????? | | ?????????????????????????????????????????????????? | | ?????????????????????????????????????????????????? | | ?????????????????????????????????????????????????? | | ?????????????????????????????????????????????????? | | ?????????????????????????????????????????????????? | | ?????????????????????????????????????????????????? | | ?????????????????????????????????????????????????? | | ?????????????????????????????????????????????????? | | ?????????????????????????????????????????????????? | | ?????????????????????????????????????????????????? | | ?????????????????????????????????????????????????? | | ?????????????????????????????????????????????????? | | ?????????????????????????????????????????????????? | +----------------------------------------------------+ Best States ------------- Heat Dissipation 20 Energy Generation 5 Energy Capacity 100 Matter Stores 300 Matter Capacity 300 Sight Range 16 Terrain Scan Density 10 Resistance: KI 35 Resistance: TH 35 Resistance: EX 35 Resistance: EM 35 Resistance: I 35 Resistance: S 35 Resistance: P 35 Evasion (%) 50 Offensive Hacking 20 Item Schematics ----------------- None Robot Schematics ------------------ None Fabricated ------------ Nothing Alien Tech Used ----------------- None Achievements -------------- None Challenges ------------ Devolution Fragile Parts No Salvage Pure Core Scavenger Simple Hacker Trapped Game ------ Seed FlakNeutrinoSubcomponent Manual? 0 Play Time 00:14:22 Cumulative 282.3 hours Start 2023.03.26 @ 05:50:17 End 2023.03.26 @ 06:03:14 Sessions 1 Manual Loads 0 Difficulty Explorer Special Mode None Game No. 277 Rogue 254 Adventurer 1 Explorer 22 Win Type - Total 16 Types 13/1/0/2/0/0/0/0/0 Lore% 74 Gallery% 80 Achievement% 72 Wizard Run 0 Options --------- ASCII 1 Keyboard 1 Movement Numpad Keybinds 1 Fullscreen 1 Font 18/X11 Map View 76x50 Tactical HUD 1 Map Filters NONE Filters NONE Steam 1 RUN: 4bbca392-3c00-4fae-9af9-f2d1201798a4